bitfinex/quotes_BTCUSD_20250908
["timestamp","ask_amount","ask_price","bid_price","bid_amount"]
[1757344951630,0.33249994,112790.0,112780.0,0.74557589]
[1757344951829,0.33249994,112790.0,112780.0,0.90681589]
[1757344952121,0.33464994,112790.0,112780.0,0.56374589]
[1757344952359,0.33464994,112790.0,112780.0,0.50050239]
[1757344952557,0.33464994,112790.0,112780.0,0.33926239]
[1757344952765,0.33464994,112790.0,112780.0,0.50050239]
[1757344953411,0.51519062,112790.0,112780.0,0.59241239]
[1757344953654,0.51519062,112790.0,112780.0,0.75353239]
[1757344954702,0.33464994,112790.0,112780.0,0.75353239]
[1757344955123,0.33464994,112790.0,112780.0,0.75550239]
[1757344955500,0.33786994,112790.0,112780.0,0.75353239]
[1757344955904,0.33464994,112790.0,112780.0,0.75353239]
[1757344956117,0.33786994,112790.0,112780.0,0.75353239]
[1757344956344,0.33564994,112790.0,112780.0,0.75550239]
[1757344956556,0.33564994,112790.0,112780.0,0.75353239]
[1757344956724,0.33886994,112790.0,112780.0,0.75353239]
[1757344957699,0.33886994,112790.0,112780.0,0.57619599]
[1757344957915,0.33886994,112790.0,112780.0,0.41507599]
[1757344957916,0.87254716,112790.0,112780.0,0.41507599]
[1757344958131,0.87254716,112790.0,112780.0,0.57611599]
[1757344958343,0.51619062,112790.0,112780.0,0.57611599]
[1757344958552,0.53275823,112790.0,112780.0,0.57611599]
[1757344958764,0.53275824,112790.0,112780.0,0.57611599]
[1757344959389,0.51619062,112790.0,112780.0,0.57611599]
[1757344959844,0.51619062,112790.0,112780.0,0.75345239]
[1757344963125,0.33886994,112790.0,112780.0,0.75345239]
[1757344963548,0.33564994,112790.0,112780.0,0.75345239]
[1757344963762,0.33886994,112790.0,112780.0,0.96609239]
[1757344963990,0.33564994,112790.0,112780.0,0.96806239]
[1757344964469,0.33349994,112790.0,112780.0,0.97113239]
[1757344966185,0.33564994,112790.0,112780.0,0.97113239]
[1757344966407,0.33564994,112790.0,112780.0,0.96806239]
[1757344966987,0.33564994,112790.0,112780.0,0.96609239]
[1757344967209,0.33464994,112790.0,112780.0,0.80505239]
[1757344967428,0.33786994,112790.0,112780.0,0.96617239]
[1757344969264,0.33464994,112790.0,112780.0,0.96617239]
[1757344969449,0.33464994,112790.0,112780.0,0.96814239]
[1757344969646,0.33464994,112790.0,112780.0,0.96617239]
[1757344970343,0.33249994,112790.0,112780.0,0.97121239]
[1757344973212,0.33249994,112790.0,112780.0,1.17121239]
[1757344973431,0.33249994,112790.0,112780.0,1.23445589]
[1757344976079,0.33249994,112790.0,112780.0,1.57445589]
[1757344976706,0.33249994,112790.0,112780.0,1.51121239]
[1757344977229,0.33249994,112790.0,112780.0,1.59036712]
[1757344979035,0.33462994,112790.0,112780.0,1.59036712]
[1757344979222,0.33249994,112790.0,112780.0,1.59036712]
[1757344992467,0.33249994,112790.0,112780.0,1.51121239]
[1757344993281,0.21288888,112790.0,112780.0,1.51121239]
[1757344993492,0.21288888,112790.0,112780.0,1.59052273]
[1757344994939,0.21288888,112790.0,112780.0,1.42940273]
[1757344995164,0.21288888,112790.0,112780.0,1.58948273]
[1757344995996,0.21288888,112790.0,112780.0,1.58952273]
[1757344997541,0.21288888,112790.0,112780.0,1.58928273]
[1757345003303,0.21810888,112790.0,112780.0,1.42436273]
[1757345003512,0.39542956,112790.0,112780.0,0.62771599]
[1757345003723,0.39542956,112790.0,112780.0,1.04372215]
[1757345003928,0.39542956,112790.0,112780.0,0.96433239]
[1757345004331,0.21493888,112790.0,112780.0,0.96433239]
[1757345005351,0.21810888,112790.0,112780.0,0.96433239]
[1757345006453,0.39542956,112790.0,112780.0,0.96433239]
[1757345006983,0.21810888,112790.0,112780.0,0.96433239]
[1757345007185,0.39542956,112790.0,112780.0,0.96433239]
[1757345007593,0.21493888,112790.0,112780.0,0.96632239]
[1757345007777,0.21493888,112790.0,112780.0,0.96433239]
[1757345007778,0.21810888,112790.0,112780.0,0.96433239]
[1757345008624,0.39542956,112790.0,112780.0,0.96433239]
[1757345009230,0.21810888,112790.0,112780.0,0.96433239]
[1757345018584,0.21493888,112790.0,112780.0,0.96632239]
[1757345019006,0.21810888,112790.0,112780.0,0.96433239]
[1757345019617,0.21493888,112790.0,112780.0,0.96433239]
[1757345020151,0.21288888,112790.0,112780.0,0.96950239]
[1757345021266,0.21288888,112790.0,112780.0,1.04889215]
[1757345021491,0.21288888,112790.0,112780.0,1.07548979]
[1757345022764,0.21288888,112790.0,112780.0,1.41548979]
[1757345023205,1e-08,112790.0,112780.0,1.41548979]
[1757345023444,0.31956211,112820.0,112810.0,0.86728924]
[1757345023665,0.31956211,112820.0,112810.0,5.82071523]
[1757345023877,0.31956211,112820.0,112810.0,5.82389523]
[1757345024290,0.31956211,112820.0,112810.0,5.85048427]
[1757345024721,0.31956211,112820.0,112810.0,5.85094599]
[1757345028305,0.31956211,112820.0,112810.0,5.71731599]
[1757345028577,0.31956211,112820.0,112810.0,5.87499599]
[1757345029610,0.31956211,112820.0,112810.0,5.71731599]
[1757345029993,0.31956211,112820.0,112810.0,5.87483599]
[1757345030202,0.31956211,112820.0,112810.0,5.71731599]
[1757345030409,0.31956211,112820.0,112810.0,5.69302599]
[1757345030755,0.31956211,112820.0,112810.0,5.85050599]
[1757345031106,0.31956211,112820.0,112810.0,5.69302599]
[1757345031350,0.31956211,112820.0,112810.0,5.85050599]
[1757345031562,0.31956211,112820.0,112810.0,5.85042599]
[1757345033201,0.31956211,112820.0,112810.0,5.85034599]
[1757345034218,0.31956211,112820.0,112810.0,5.69302599]
[1757345034443,0.31956211,112820.0,112810.0,5.85034599]
[1757345037137,0.31956211,112820.0,112810.0,5.68785599]
[1757345037345,0.31956211,112820.0,112810.0,5.85046599]
[1757345041298,1e-08,112820.0,112810.0,5.89511481]
[1757345041915,1e-08,112830.0,112820.0,0.51727353]
[1757345042071,1e-08,112830.0,112820.0,5.42711952]
[1757345042286,1e-08,112830.0,112820.0,5.42906952]
[1757345043305,1e-08,112830.0,112820.0,5.45300834]
[1757345045199,1e-08,112830.0,112820.0,5.45700834]
[1757345046822,1e-08,112830.0,112820.0,5.27195952]
[1757345047239,0.00211001,112830.0,112820.0,5.26682952]
[1757345047579,0.00211001,112830.0,112820.0,0.63326952]
[1757345047982,0.00211001,112830.0,112820.0,0.62926952]
[1757345048192,0.91567823,112830.0,112820.0,0.071]
[1757345048396,0.91567823,112830.0,112820.0,0.22816]
[1757345048644,0.53852862,112830.0,112820.0,0.32307599]
[1757345048888,0.18231783,112830.0,112820.0,0.32007599]
[1757345049032,0.56512563,112830.0,112820.0,0.32007599]
[1757345049230,0.56512563,112830.0,112820.0,0.32207599]
[1757345049780,0.56512563,112830.0,112820.0,0.32007599]
[1757345050085,0.20891484,112830.0,112820.0,0.32007599]
[1757345050225,0.56512563,112830.0,112820.0,0.32007599]
[1757345050822,0.58606445,112830.0,112820.0,0.071]
[1757345051025,0.58606445,112830.0,112820.0,0.22804]
[1757345051667,0.58606445,112830.0,112820.0,0.22504]
[1757345052023,0.58706445,112830.0,112820.0,0.068]
[1757345052245,1.30674524,112830.0,112820.0,0.068]
[1757345052457,1.30695454,112830.0,112820.0,0.22492]
[1757345052857,0.9506391,112830.0,112820.0,0.22492]
[1757345053491,0.82826692,112830.0,112820.0,0.22492]
[1757345054103,0.85486482,112830.0,112820.0,0.22492]
[1757345055185,0.50054938,112830.0,112820.0,0.22492]
[1757345055393,0.87603364,112830.0,112820.0,0.22492]
[1757345055735,0.87803364,112830.0,112820.0,0.22476]
[1757345055936,0.88003364,112830.0,112820.0,0.22476]
[1757345061216,0.58570998,112830.0,112820.0,0.22476]
[1757345061544,0.94202542,112830.0,112820.0,0.22476]
[1757345061749,1.05593231,112830.0,112820.0,0.068]
[1757345061954,1.05593231,112830.0,112820.0,0.22456]
[1757345062385,1.39593231,112830.0,112820.0,0.22456]
[1757345064236,1.33202542,112830.0,112820.0,0.22456]
[1757345064965,0.61939454,112830.0,112820.0,0.22456]
[1757345065170,1.33202542,112830.0,112820.0,0.22456]
[1757345068111,1.33202542,112830.0,112820.0,0.43716]
[1757345068447,0.97570998,112830.0,112820.0,0.43716]
[1757345069239,1.00116169,112830.0,112820.0,0.43716]
[1757345069564,1.35747713,112830.0,112820.0,0.43716]
[1757345070181,1.35747713,112830.0,112820.0,0.2806]
[1757345070386,1.38021713,112830.0,112820.0,0.43716]
[1757345071723,1.35747713,112830.0,112820.0,0.43716]
[1757345071931,0.64484625,112830.0,112820.0,0.43716]
[1757345072133,1.35747713,112830.0,112820.0,0.43716]
[1757345074332,1.37400082,112830.0,112820.0,0.43716]
[1757345075132,1.35747713,112830.0,112820.0,0.43716]
[1757345075356,1.37401663,112830.0,112820.0,0.43716]
[1757345075578,0.66138575,112830.0,112820.0,0.43716]
[1757345075745,0.99224948,112830.0,112820.0,0.43716]
[1757345076596,1.34856492,112830.0,112820.0,0.43716]
[1757345076844,1.34856492,112830.0,112820.0,0.2806]
[1757345077124,1.34856492,112830.0,112820.0,0.43716]
[1757345077285,0.63593404,112830.0,112820.0,0.43716]
[1757345077492,1.34856492,112830.0,112820.0,0.43716]
[1757345078027,1.44048091,112830.0,112820.0,0.43716]
[1757345078166,1.34856492,112830.0,112820.0,0.43716]
[1757345078996,1.34856492,112830.0,112820.0,0.2806]
[1757345079362,1.34856492,112830.0,112820.0,0.43716]
[1757345080391,0.63593404,112830.0,112820.0,0.43716]
[1757345080571,1.34856492,112830.0,112820.0,0.43716]
[1757345080778,1.44048091,112830.0,112820.0,0.43716]
[1757345081244,1.44048091,112830.0,112820.0,0.2806]
[1757345081448,1.44053619,112830.0,112820.0,0.2806]
[1757345081662,1.44053619,112830.0,112820.0,0.43716]
[1757345082972,0.5648205,112830.0,112820.0,0.43716]
[1757345083152,0.1982226,112830.0,112820.0,0.43716]
[1757345083888,0.1982226,112830.0,112820.0,0.90634952]
[1757345084086,0.1982226,112830.0,112820.0,0.90952952]
[1757345084328,0.1982226,112830.0,112820.0,0.91160952]
[1757345084533,0.1978526,112830.0,112820.0,0.91160952]
[1757345084925,0.1958526,112830.0,112820.0,0.91160952]
[1757345085310,0.17925782,112830.0,112820.0,0.91160952]
[1757345085517,0.18052782,112830.0,112820.0,0.91160952]
[1757345085722,0.18052782,112830.0,112820.0,0.57781599]
[1757345085931,0.18052782,112830.0,112820.0,0.72903599]
[1757345086125,0.18052782,112830.0,112820.0,0.73225599]
[1757345086335,0.18052782,112830.0,112820.0,0.57573599]
[1757345086544,0.17862782,112830.0,112820.0,0.72903599]
[1757345087067,0.17962782,112830.0,112820.0,0.72903599]
[1757345087262,0.17962782,112830.0,112820.0,0.57251599]
[1757345087478,0.17962782,112830.0,112820.0,0.72903599]
[1757345087898,0.17962782,112830.0,112820.0,0.57251599]
[1757345088031,0.17962782,112830.0,112820.0,0.72903599]
[1757345088232,0.17962782,112830.0,112820.0,0.57251599]
[1757345088431,0.17962782,112830.0,112820.0,0.72903599]
[1757345089105,0.17962782,112830.0,112820.0,0.57251599]
[1757345089336,0.17925782,112830.0,112820.0,0.73433599]
[1757345089545,0.17962782,112830.0,112820.0,0.73221599]
[1757345089692,0.17962782,112830.0,112820.0,0.72899599]
[1757345090332,0.17962782,112830.0,112820.0,0.57251599]
[1757345090786,0.17962782,112830.0,112820.0,0.72899599]
[1757345091119,0.17985782,112830.0,112820.0,0.57251599]
[1757345091318,0.53617326,112830.0,112820.0,0.72899599]
[1757345091539,0.55711208,112830.0,112820.0,0.4806]
[1757345091719,0.57367417,112830.0,112820.0,0.63708]
[1757345092123,0.92998961,112830.0,112820.0,0.63708]
[1757345092581,0.57367417,112830.0,112820.0,0.63708]
[1757345092780,0.21735873,112830.0,112820.0,0.63708]
[1757345092978,0.57367417,112830.0,112820.0,0.63708]
[1757345093183,0.17727353,112820.0,112810.0,0.00046172]
[1757345093388,0.17727353,112820.0,112810.0,0.52945771]
[1757345093588,0.17764353,112820.0,112810.0,0.52945771]
[1757345095106,0.53418897,112820.0,112810.0,0.52945771]
[1757345096100,0.53518897,112820.0,112810.0,0.52945771]
[1757345096701,0.53618897,112820.0,112810.0,0.52945771]
[1757345097581,0.53618897,112820.0,112810.0,0.52941771]
[1757345099207,0.17987353,112820.0,112810.0,0.52941771]
[1757345099397,0.53618897,112820.0,112810.0,0.52941771]
[1757345099568,0.53618897,112820.0,112810.0,0.28106172]
[1757345099768,0.53618897,112820.0,112810.0,0.43750172]
[1757345100404,0.55712779,112820.0,112810.0,0.43750172]
[1757345101017,0.20081235,112820.0,112810.0,0.43750172]
[1757345101194,0.17964353,112820.0,112810.0,0.43750172]
[1757345101406,0.53595897,112820.0,112810.0,0.43750172]
[1757345101610,0.17964353,112820.0,112810.0,0.43750172]
[1757345101917,0.53595897,112820.0,112810.0,0.43750172]
[1757345102328,0.17964353,112820.0,112810.0,0.43750172]
[1757345102740,0.17927353,112820.0,112810.0,0.53446771]
[1757345103816,0.17927353,112820.0,112810.0,0.71175695]
[1757345104064,0.17964353,112820.0,112810.0,0.53446771]
[1757345104226,0.17864353,112820.0,112810.0,0.53446771]
[1757345104446,0.17827353,112820.0,112810.0,0.53446771]
[1757345104880,0.17864353,112820.0,112810.0,0.53235771]
[1757345105457,0.17864353,112820.0,112810.0,0.53446771]
[1757345105673,0.17727353,112820.0,112810.0,0.71175695]
[1757345105900,0.17725782,112830.0,112820.0,0.32727353]
[1757345106126,0.17725782,112830.0,112820.0,0.41918952]
[1757345106333,0.17725782,112830.0,112820.0,0.42423952]
[1757345106969,0.17725782,112830.0,112820.0,0.24696599]
[1757345107377,0.17825782,112830.0,112820.0,0.24696599]
[1757345107583,0.17925782,112830.0,112820.0,0.42423952]
[1757345107986,0.17825782,112830.0,112820.0,0.24696599]
[1757345109227,0.18610448,112840.0,112820.0,0.42423952]
[1757345109444,0.17725782,112830.0,112820.0,0.39283763]
[1757345109656,0.17725782,112830.0,112820.0,0.46384009]
[1757345109794,0.17725782,112830.0,112820.0,0.64111362]
[1757345109999,0.17725782,112830.0,112820.0,0.64405362]
[1757345110823,0.17725782,112830.0,112820.0,0.46678009]
[1757345111030,0.17725782,112830.0,112820.0,0.64405362]
[1757345111226,0.17725782,112830.0,112820.0,0.31042009]
[1757345111466,0.17725782,112830.0,112820.0,0.46678009]
[1757345112660,0.17725782,112830.0,112820.0,0.66678009]
[1757345113060,0.17725782,112830.0,112820.0,0.51042009]
[1757345113283,0.17762782,112830.0,112820.0,0.66678009]
[1757345113912,0.17725782,112830.0,112820.0,0.66678009]
[1757345114213,0.17725782,112830.0,112820.0,0.86678009]
[1757345115763,0.18610448,112840.0,112820.0,1.04405362]
[1757345115935,0.53226335,112850.0,112840.0,0.35]
[1757345116088,0.53226335,112850.0,112840.0,0.66834599]
[1757345116287,0.53226335,112850.0,112840.0,0.67128599]
[1757345117129,0.53263335,112850.0,112840.0,0.66623599]
[1757345117330,0.8886954,112850.0,112840.0,0.66623599]
[1757345117547,0.53263335,112850.0,112840.0,0.30991599]
[1757345117696,0.8886954,112850.0,112840.0,0.46623599]
[1757345117906,0.8889254,112850.0,112840.0,0.46623599]
[1757345118111,0.8886954,112850.0,112840.0,0.30991599]
[1757345118312,0.8906954,112850.0,112840.0,0.30991599]
[1757345118558,0.8906954,112850.0,112840.0,0.46623599]
[1757345118952,0.53426335,112850.0,112840.0,0.47128599]
[1757345119986,0.53426335,112850.0,112840.0,0.6485281]
[1757345120659,0.53226335,112850.0,112840.0,0.6485281]
[1757345120917,0.34617236,112850.0,112840.0,0.6485281]
[1757345121085,0.34617236,112850.0,112840.0,0.8485281]
[1757345121291,0.34617236,112850.0,112840.0,0.9119822]
[1757345122616,0.34617236,112850.0,112840.0,0.92074886]
[1757345123275,0.34617236,112850.0,112840.0,0.85729476]
[1757345123588,0.34617236,112850.0,112840.0,0.92074886]
[1757345124295,0.34617236,112850.0,112840.0,0.94470886]
[1757345124719,0.34617236,112850.0,112840.0,1.14470886]
[1757345125574,0.34617236,112850.0,112840.0,0.98838886]
[1757345125796,0.34617236,112850.0,112840.0,1.14462886]
[1757345126012,0.34617236,112850.0,112840.0,0.98838886]
[1757345126223,0.34617236,112850.0,112840.0,1.14462886]
[1757345129602,0.34617236,112850.0,112840.0,0.98838886]
[1757345129782,0.34617236,112850.0,112840.0,1.14462886]
[1757345130191,0.34617236,112850.0,112840.0,1.08117476]
[1757345130932,0.34617236,112850.0,112840.0,1.08113476]
[1757345131389,0.34617236,112850.0,112840.0,0.98838886]
[1757345131589,0.52339876,112850.0,112840.0,0.98838886]
[1757345131999,0.52339876,112850.0,112840.0,0.61114675]
[1757345132211,0.52339876,112850.0,112840.0,0.67993265]
[1757345132421,0.52339876,112850.0,112840.0,0.85717476]
[1757345133046,0.98675657,112850.0,112840.0,0.66905599]
[1757345133271,0.52339876,112850.0,112840.0,0.67111599]
[1757345133649,0.52376876,112850.0,112840.0,0.67111599]
[1757345133812,0.52376876,112850.0,112840.0,0.30991599]
[1757345134010,0.98712657,112850.0,112840.0,0.46611599]
[1757345134219,0.52376876,112850.0,112840.0,0.47128599]
[1757345134425,0.52339876,112850.0,112840.0,0.47128599]
[1757345135382,0.52339876,112850.0,112840.0,0.72632599]
[1757345137314,0.52376876,112850.0,112840.0,0.72426599]
[1757345137543,0.98712657,112850.0,112840.0,0.72111599]
[1757345138633,0.98735657,112850.0,112840.0,0.72111599]
[1757345138866,0.98735657,112850.0,112840.0,0.32304]
[1757345139309,0.98735657,112850.0,112840.0,0.4792]
[1757345139569,1.51860105,112850.0,112840.0,0.32304]
[1757345139780,1.53515056,112850.0,112840.0,0.4792]
[1757345140421,1.05524324,112850.0,112840.0,0.4792]
[1757345140619,1.55784764,112850.0,112840.0,0.4792]
[1757345141069,1.57539454,112850.0,112840.0,0.4792]
[1757345141308,0.17727353,112820.0,112810.0,0.53871384]
[1757345141508,0.64100134,112820.0,112810.0,0.69862983]
[1757345142316,0.64123134,112820.0,112810.0,0.62801771]
[1757345142547,0.64123134,112820.0,112810.0,0.78413771]
[1757345143290,0.17787353,112820.0,112810.0,0.78413771]
[1757345143526,0.64123134,112820.0,112810.0,0.78413771]
[1757345144443,0.64123134,112820.0,112800.0,0.15]
[1757345144444,0.18620243,112790.0,112780.0,0.41256]
[1757345144708,0.65016024,112790.0,112780.0,0.43714241]
[1757345144931,0.67109906,112790.0,112780.0,0.43714241]
[1757345145350,0.67086906,112790.0,112780.0,0.43714241]
[1757345145570,0.18657243,112790.0,112780.0,0.43714241]
[1757345146475,0.65016024,112790.0,112780.0,0.43714241]
[1757345146917,0.65116024,112790.0,112780.0,0.43714241]
[1757345147147,0.69770619,112790.0,112780.0,0.43714241]
[1757345148027,0.69870619,112790.0,112780.0,0.43714241]
[1757345148749,0.65193024,112790.0,112780.0,0.43714241]
[1757345148979,0.18857243,112790.0,112780.0,0.43714241]
[1757345149221,0.18857243,112790.0,112750.0,0.46768]
[1757345149222,0.17736786,112760.0,112750.0,0.46768]
[1757345149449,0.17736786,112760.0,112750.0,0.69226315]
[1757345149450,0.64109567,112760.0,112750.0,0.69226315]
[1757345150175,0.64132567,112760.0,112750.0,0.69226315]
[1757345150394,0.17773786,112760.0,112750.0,0.69226315]
[1757345150614,0.64109567,112760.0,112750.0,0.69226315]
[1757345151068,0.64132567,112760.0,112750.0,0.53614315]
[1757345151298,0.64132567,112760.0,112750.0,0.69226315]
[1757345151487,0.64109567,112760.0,112750.0,0.53614315]
[1757345151731,0.64109567,112760.0,112750.0,0.69226315]
[1757345151954,0.64132567,112760.0,112750.0,0.69226315]
[1757345152169,0.64132567,112760.0,112750.0,0.53614315]
[1757345152383,0.17773786,112760.0,112750.0,0.69226315]
[1757345152602,0.17773786,112760.0,112750.0,0.69326315]
[1757345152849,0.64109567,112760.0,112750.0,0.69226315]
[1757345153289,0.64109567,112760.0,112750.0,0.53614315]
[1757345153512,0.64109567,112760.0,112750.0,0.53714315]
[1757345153784,0.64109567,112760.0,112750.0,0.69326315]
[1757345154702,0.64132567,112760.0,112750.0,0.69326315]
[1757345155155,0.17773786,112760.0,112750.0,0.69326315]
[1757345155375,0.64109567,112760.0,112750.0,0.69326315]
[1757345156311,0.64132567,112760.0,112750.0,0.69326315]
[1757345156718,0.64109567,112760.0,112750.0,0.69326315]
[1757345157133,0.64132567,112760.0,112750.0,0.69326315]
[1757345157493,0.66226449,112760.0,112750.0,0.53714315]
[1757345157724,0.66226449,112760.0,112750.0,0.69326315]
[1757345158163,0.64109567,112760.0,112750.0,0.69326315]
[1757345158383,0.65751223,112760.0,112750.0,0.69326315]
[1757345158932,0.65774223,112760.0,112750.0,0.69326315]
[1757345159161,0.65751223,112760.0,112750.0,0.69226315]
[1757345159596,0.65851223,112760.0,112750.0,0.69226315]
[1757345160392,0.67968105,112760.0,112750.0,0.53614315]
[1757345160656,0.76329049,112760.0,112750.0,0.53614315]
[1757345160880,0.76329049,112760.0,112750.0,0.69222315]
[1757345160881,0.68068105,112760.0,112750.0,0.69222315]
[1757345161105,0.17739932,112740.0,112730.0,0.25524]
[1757345161342,0.17776932,112740.0,112730.0,0.62801479]
[1757345162095,0.17776932,112740.0,112730.0,0.77801479]
[1757345162356,0.66229595,112740.0,112730.0,0.5360988]
[1757345162661,0.67873563,112740.0,112730.0,0.6921788]
[1757345163118,0.67873563,112740.0,112730.0,0.6931788]
[1757345163563,0.67873563,112740.0,112730.0,0.6921788]
[1757345163779,0.86061074,112740.0,112730.0,0.6921788]
[1757345164033,0.95252673,112740.0,112730.0,0.6941788]
[1757345164250,0.17744654,112710.0,112700.0,0.0004]
[1757345164467,0.64080435,112710.0,112700.0,0.2485349]
[1757345164686,0.17781654,112710.0,112700.0,0.2485349]
[1757345164895,0.64117435,112710.0,112700.0,0.2485349]
[1757345165120,0.64117435,112710.0,112700.0,0.00053891]
[1757345165121,0.64140435,112710.0,112700.0,0.00053891]
[1757345165592,0.65784216,112710.0,112700.0,0.15661891]
[1757345166733,0.67878098,112710.0,112700.0,0.15661891]
[1757345166947,0.67855098,112710.0,112700.0,0.15661891]
[1757345167170,0.21519317,112710.0,112700.0,0.15661891]
[1757345167400,0.21519317,112710.0,112700.0,0.2536549]
[1757345167401,0.19388435,112710.0,112700.0,0.2536549]
[1757345167619,0.17781654,112710.0,112700.0,0.2536549]
[1757345168104,0.17781654,112710.0,112700.0,0.00053891]
[1757345168376,0.19426726,112710.0,112700.0,0.15661891]
[1757345168616,0.19426726,112710.0,112700.0,0.16173891]
[1757345168821,0.19426726,112710.0,112700.0,0.44257891]
[1757345169361,0.19428442,112710.0,112700.0,0.44257891]
[1757345169556,0.19428442,112710.0,112700.0,0.5784149]
[1757345169675,0.19428442,112710.0,112700.0,0.7293749]
[1757345169898,0.19428286,112710.0,112700.0,0.7293749]
[1757345170182,0.19428286,112710.0,112700.0,0.7303749]
[1757345171588,0.65764067,112710.0,112700.0,0.63845891]
[1757345172014,0.19428286,112710.0,112700.0,0.63845891]
[1757345173231,0.19451286,112710.0,112700.0,0.63945891]
[1757345173497,0.19428286,112710.0,112700.0,0.63945891]
[1757345173675,0.19428286,112710.0,112700.0,0.63745891]
[1757345174075,0.19428286,112710.0,112700.0,0.63845891]
[1757345174532,0.19428286,112710.0,112700.0,0.66745891]
[1757345175426,0.19428286,112710.0,112700.0,0.7644949]
[1757345175647,0.19428286,112710.0,112700.0,0.7593749]
[1757345176796,0.19391286,112710.0,112700.0,0.7644949]
[1757345177056,0.19391286,112710.0,112700.0,0.7654949]
[1757345177279,0.19428286,112710.0,112700.0,0.31237891]
[1757345177511,0.19428286,112710.0,112700.0,0.46841891]
[1757345178170,0.19428286,112710.0,112700.0,0.46941891]
[1757345178599,0.19428286,112710.0,112700.0,0.46841891]
[1757345179054,0.19428286,112710.0,112700.0,0.46741891]
[1757345179498,0.19428286,112710.0,112700.0,0.46841891]
[1757345179938,0.19428286,112710.0,112700.0,0.46741891]
[1757345181110,0.77313921,112710.0,112700.0,0.31137891]
[1757345181334,0.81031199,112710.0,112700.0,0.31137891]
[1757345181592,0.19451286,112710.0,112700.0,0.46741891]
[1757345181777,0.77313921,112710.0,112700.0,0.46741891]
[1757345182876,0.17746228,112700.0,112690.0,0.40572]
[1757345183093,0.1941586,112700.0,112690.0,0.84310369]
[1757345183328,0.77315495,112700.0,112690.0,0.84310369]
[1757345183764,0.77315495,112700.0,112690.0,0.84306369]
[1757345184432,0.1945286,112700.0,112690.0,0.84406369]
[1757345185993,0.1942986,112700.0,112690.0,0.84942369]
[1757345186211,0.1939286,112700.0,112690.0,0.84942369]
[1757345186426,0.1939286,112700.0,112690.0,0.85042369]
[1757345186645,0.1939286,112700.0,112690.0,1.11981771]
[1757345186646,0.01646632,112700.0,112690.0,1.11981771]
[1757345186860,0.1939286,112700.0,112690.0,1.11981771]
[1757345189010,0.1939286,112700.0,112690.0,1.11977771]
[1757345189697,0.1939286,112700.0,112690.0,0.94229968]
[1757345190592,0.01646632,112700.0,112690.0,1.31977771]
[1757345190802,0.01646632,112700.0,112690.0,1.65977771]
[1757345191072,0.01646632,112700.0,112690.0,1.94742459]
[1757345191272,0.18631652,112720.0,112710.0,0.35]
[1757345191484,0.20289891,112720.0,112710.0,0.77532253]
[1757345191697,0.20289891,112720.0,112710.0,0.78068253]
[1757345192630,0.20389891,112720.0,112710.0,0.62472253]
[1757345193054,0.20389891,112720.0,112710.0,0.44727599]
[1757345193055,0.20289891,112720.0,112710.0,0.44727599]
[1757345193271,0.20289891,112720.0,112710.0,0.60323599]
[1757345193505,0.20289891,112720.0,112710.0,0.60319599]
[1757345193719,0.20389891,112720.0,112710.0,0.60319599]
[1757345193934,0.20289891,112720.0,112710.0,0.78064253]
[1757345194160,0.20289891,112720.0,112710.0,0.78949455]
[1757345194822,0.20289891,112720.0,112710.0,0.98949455]
[1757345195067,0.01657809,112720.0,112710.0,0.98949455]
[1757345195735,0.01657809,112720.0,112710.0,1.39277143]
[1757345195964,0.17741507,112730.0,112720.0,0.1774308]
[1757345196208,0.19398749,112730.0,112720.0,0.49870679]
[1757345197513,0.19398749,112730.0,112720.0,0.34278679]
[1757345197725,0.19398749,112730.0,112720.0,0.49870679]
[1757345199347,0.17741507,112730.0,112720.0,0.49870679]
[1757345200037,0.17741507,112730.0,112720.0,0.54629451]
[1757345200347,0.17741507,112730.0,112720.0,0.21294371]
[1757345200549,0.17741507,112730.0,112720.0,0.54625451]
[1757345201907,0.17741507,112730.0,112720.0,0.21294371]
[1757345202247,0.17778507,112730.0,112720.0,0.36665371]
[1757345202659,0.17778507,112730.0,112720.0,0.36342371]
[1757345203230,0.17778507,112730.0,112720.0,0.31906599]
[1757345203432,0.17778507,112730.0,112720.0,0.16322599]
[1757345203615,0.17778507,112730.0,112720.0,0.31583599]
[1757345206038,0.17741507,112730.0,112720.0,0.32119599]
[1757345206239,0.17741507,112730.0,112720.0,0.53395599]
[1757345206435,0.17741507,112730.0,112720.0,0.58154371]
[1757345206658,0.17741507,112730.0,112720.0,0.53395599]
[1757345207065,0.17778507,112730.0,112720.0,0.53395599]
[1757345207271,0.17778507,112730.0,112720.0,0.58154371]
[1757345207535,0.17741507,112730.0,112720.0,0.58154371]
[1757345208863,0.18626928,112740.0,112730.0,0.35]
[1757345209079,0.18626697,112750.0,112730.0,0.82469105]
[1757345209286,0.18627993,112760.0,112750.0,0.35]
[1757345209489,0.18627993,112760.0,112750.0,0.51212599]
[1757345209670,0.18627993,112760.0,112750.0,0.51535599]
[1757345210074,0.18627993,112760.0,112750.0,0.51581968]
[1757345211198,0.18727993,112760.0,112750.0,0.51581968]
[1757345211639,0.18764993,112760.0,112750.0,0.51045968]
[1757345212328,0.18964993,112760.0,112750.0,0.51045968]
[1757345212545,0.18964993,112760.0,112750.0,0.41854369]
[1757345214843,0.76827628,112760.0,112750.0,0.41854369]
[1757345215301,0.76850628,112760.0,112750.0,0.41854369]
[1757345217174,0.76827628,112760.0,112750.0,0.41854369]
[1757345218099,0.76850628,112760.0,112750.0,0.41854369]
[1757345218310,0.76827628,112760.0,112750.0,0.41854369]
[1757345218517,0.76850628,112760.0,112750.0,0.26854369]
[1757345218721,0.899409,112760.0,112750.0,0.06854369]
[1757345218932,0.899409,112760.0,112750.0,0.22418369]
[1757345225355,0.17738359,112750.0,112720.0,0.33095984]
[1757345225555,0.17738359,112750.0,112720.0,0.21276]
[1757345225556,0.75641141,112730.0,112720.0,0.21276]
[1757345225755,0.8485574,112730.0,112720.0,0.28084]
[1757345226547,0.8485574,112730.0,112720.0,0.4364]
[1757345226958,0.8485574,112730.0,112720.0,0.4374]
[1757345227112,0.75664141,112730.0,112720.0,0.4374]
[1757345227292,0.79697113,112730.0,112720.0,0.4394]
[1757345227508,0.79697113,112730.0,112720.0,0.4384]
[1757345227686,0.79697113,112730.0,112720.0,0.4364]
[1757345228289,0.79774113,112730.0,112720.0,0.4364]
[1757345229089,0.79797113,112730.0,112720.0,0.4364]
[1757345230738,0.21934478,112730.0,112720.0,0.4364]
[1757345230923,0.79797113,112730.0,112720.0,0.4364]
[1757345232704,0.81890995,112730.0,112720.0,0.4364]
[1757345234366,0.2402836,112730.0,112720.0,0.4364]
[1757345234508,0.70501025,112730.0,112720.0,0.4364]
[1757345234863,0.21911478,112730.0,112720.0,0.4364]
[1757345235075,0.21911478,112730.0,112720.0,0.44154]
[1757345235304,0.17878506,112730.0,112720.0,0.44154]
[1757345235508,0.64351171,112730.0,112720.0,0.44154]
[1757345236552,0.17841506,112730.0,112720.0,0.53345599]
[1757345238756,0.001,112730.0,112720.0,0.71088679]
[1757345238975,0.001,112730.0,112720.0,0.91088679]